Workbook

Sheet Sources of value
C4: Components of Energy Efficiency Cost-Effectiveness Tests (Lazard and Cohen July 2013, Table 12.)
C5: Benefit (or Cost) | D5: Reference Section | E5: Partici-pant Test | F5: RIM | G5: PAC | H5: TRC | I5: Societal
F6: Test | G6: Test | H6: Test | I6: Cost Test
C7: UTILITY SYSTEM BENEFITS | D7: 3
C8: Avoided Production Capacity Costs | D8: 3.3.1 | E8: - | F8: X | G8: X | H8: X | I8: X
C9: Avoided Production Energy Costs | D9: 3.3.2 | E9: - | F9: X | G9: X | H9: X | I9: X
C10: Avoided Costs of Existing Environmental Regulations | D10: 3.3.3 | E10: - | F10: X | G10: X | H10: X | I10: X
C11: Avoided Costs of Future Environmental Regulations | D11: 3.3.4 | E11: - | F11: X | G11: X | H11: X | I11: X
C12: Avoided Transmission Capacity Costs | D12: 3.3.5 | E12: - | F12: X | G12: X | H12: X | I12: X
C13: Avoided Distribution Capacity Costs | D13: 3.5 | E13: - | F13: X | G13: X | H13: X | I13: X
C14: Avoided Line Losses | D14: 3.6 | E14: - | F14: X | G14: X | H14: X | I14: X
C15: Avoided Reserves | D15: 3.7 | E15: - | F15: X | G15: X | H15: X | I15: X
C16: Avoided Risk | D16: 3.8 | E16: - | F16: - | G16: - | H16: X | I16: X
C17: Displacement of Renewable Resource Obligation | D17: 3.9 | E17: - | F17: X | G17: X | H17: X | I17: X
C18: Other | D18: 3.1 | E18: - | F18: - | G18: - | H18: - | I18: -
C19: BENEFITS TO PARTICIPANTS | D19: 4
C20: Other Resource Benefits to Participants | D20: 4.1 | E20: X | F20: - | G20: - | H20: X | I20: X
C21: Other Energy Savings (Fuel Oil, Propane, Natural Gas) | D21: 4.2 | E21: X | F21: - | G21: - | H21: X | I21: X
C22: Reduced Future Energy Bills | D22: 4.3 | E22: X | F22: - | G22: - | H22: - | I22: -
C23: Other Resource Savings | D23: 4.4 | E23: X | F23: - | G23: - | H23: X | I23: X
C24: NON-ENERGY BENEFITS TO PARTICIPANTS | D24: 5
C25: O&M Cost Savings | D25: 5.1 | E25: X | F25: - | G25: - | H25: X | I25: X
C26: Participant Health Impacts | D26: 5.2 | E26: X | F26: - | G26: - | I26: X
C27: Employee Productivity | D27: 5.3 | E27: X | F27: - | G27: - | H27: - | I27: X
C28: Property Values | D28: 5.4 | E28: X | F28: - | G28: - | H28: - | I28: -
C29: Comfort | D29: 5.5 | E29: X | F29: - | G29: - | H29: - | I29: X
C30: Other | D30: 5.6 | E30: X | F30: - | G30: - | H30: - | I30: -
C31: SOCIETAL NON-ENERGY BENEFITS | D31: 6
C32: Air Quality Impacts | D32: 6.1.1 | E32: - | F32: - | G32: - | H32: - | I32: X
C33: Water Quantity and Quality Impacts | D33: 6.1.2 | E33: - | F33: X | G33: X | H33: X | I33: X
C34: Coal Ash Ponds and Coal Combustion Residuals | D34: 6.1.3 | E34: - | F34: - | G34: - | H34: - | I34: X
C35: Employment Impacts | D35: 6.2.1 | E35: - | F35: - | G35: - | H35: - | I35: X
C36: Economic Development Constraints | D36: 6.2.2 | E36: - | F36: - | G36: - | H36: - | I36: X
C37: Other Economic Considerations | D37: 6.2.3 | E37: - | F37: X | G37: X | H37: X | I37: X
C38: Demand-Response Induced Price Effect (DRIPE) | D38: 6.2.4 | E38: - | F38: X | G38: X | H38: X | I38: X
C39: Societal Risk and Energy Security | D39: 6.3 | E39: - | F39: - | G39: - | H39: - | I39: X
C40: Reduction of Effects of Termination of Service | D40: 6.4.1 | E40: - | F40: X | G40: X | H40: X | I40: X
C41: Avoidance of Uncollectible Bills for Utilities | D41: 6.4.2 | E41: - | F41: X | G41: X | H41: X | I41: X
C42: Electricity/Water Nexus | D42: 7
C43: ENERGY EFFICIENCY PROGRAM COSTS
C44: Program Administration Costs (including EM&V) | D44: 8.1 | E44: - | F44: X | G44: X | H44: X | I44: X
C45: EE Measure Costs: Program Incentives | D45: 8.1 | E45: - | F45: X | G45: X | H45: X | I45: X
C46: EE Measure Costs: Participant Contribution | D46: 8.1 | E46: X | F46: - | G46: - | H46: X | I46: X
C47: EE Measure Costs: Third-Party Contribution | D47: 8.1 | H47: X | I47: X
C48: Other EE Costs | D48: 8.1 | E48: X | F48: - | G48: X | H48: X | I48: X
C49: Lost Revenues to the Utility | E49: - | F49: X | G49: - | H49: - | I49: -

Sheet Selected variables
D4: Sources of value | F4: The Participant Test | G4: The Ratepayer Impact Measure (RIM) test | H4: The Program Administrators Cost (PAC) test | I4: The Total Resource Cost Test (TRC) | J4: The Societal Cost Test (SCT) | L4: base case | M4: change case
D6: Energy value
D7: Capacity deferral
D8: Including reserves
D9: Flexibility deferral
D10: RPS deferral
D11: Transmission deferral
D12: Distribution defferal
D13: Line losses
D14: Non-electricity conservation
D15: Non-linear supply curve
D16: Environmental upgrades
D21: Operating risks (fuel price, heat rate, VOM)
D22: Forced outage risk
D23: Investment risks (decision uncertainty, usefulness)
D24: Stranded cost risk
D25: Carbon risk
D26: Direct environmental risk
D27: cooling
D28: effluent
D29: Indirect environmental risk
D30: health
D32: Property values
D33: Economic development
D34: Employment
D35: Demand-Response Induced Price Effect (DRIPE)
D37: Program Administration Costs (including EM&V)
D38: EE Measure Costs: Program Incentives
D39: EE Measure Costs: Participant Contribution
D40: EE Measure Costs: Third-Party Contribution
D41: Other EE Costs
D42: Lost Revenues to the Utility
E52: 24.40028652 | F52: 24.40028652 | G52: 24.40028652 | H52: 24.40028652 | I52: 24.40028652 | J52: 24.40028652 | K52: 24.40028652 | L52: 24.40028652 | M52: 24.40028652 | N52: 24.40028652 | O52: 24.40028652 | P52: 24.46147867 | Q52: 24.46147867 | R52: 24.46147867 | S52: 24.51930633 | T52: 25.10646511 | U52: 25.10646511 | V52: 25.10646511 | W52: 25.10646511 | X52: 25.64682598 | Y52: 25.64682598 | Z52: 26.35579477 | AA52: 26.78085177 | AB52: 27.3440966 | AC52: 28.14181157 | AD52: 28.69170115 | AE52: 29.15562624 | AF52: 29.2998096 | AG52: 29.2998096 | AH52: 29.48853545 | AI52: 30.14193261 | AJ52: 32.33432112 | AK52: 33.71128537 | AL52: 35.39119242 | AM52: 37.03567732 | AN52: 39.29963444 | AO52: 41.54462546 | AP52: 42.95660352 | AQ52: 44.70866694 | AR52: 46.69666021 | AS52: 48.83566999 | AT52: 49.99869624 | AU52: 51.81697886 | AV52: 54.04673989 | AW52: 54.93561884 | AX52: 56.16188144 | AY52: 57.88696454 | AZ52: 60.20502923 | BA52: 61.75449639 | BB52: 63.02307765 | BC52: 63.9797387 | BD52: 64.35316858 | BE52: 64.84011204 | BF52: 65.28820312 | BG52: 65.28820312 | BH52: 65.52483343 | BI52: 65.6375172 | BJ52: 65.9366114 | BK52: 66.15339402 | BL52: 66.79028741 | BM52: 66.79028741 | BN52: 66.79028741 | BO52: 66.79028741 | BP52: 66.79028741 | BQ52: 66.79028741 | BR52: 66.79028741 | BS52: 66.79028741 | BT52: 67.91377798 | BU52: 68.71751277 | BV52: 69.43059462 | BW52: 71.34906527 | BX52: 72.83322641 | BY52: 72.83322641 | BZ52: 72.83322641 | CA52: 74.20196135 | CB52: 74.20196135 | CC52: 74.20196135 | CD52: 74.20196135 | CE52: 75.76084556 | CF52: 86.55986952
E53: 29.11499343 | F53: 29.11499343 | G53: 29.11499343 | H53: 29.11499343 | I53: 24.54216529 | J53: 24.40832584 | K53: 22.68561309 | L53: 20.58981767 | M53: 22.59402049 | N53: 22.68085288 | O53: 24.19573527 | P53: 25.3406363 | Q53: 26.01401343 | R53: 27.17232197 | S53: 27.05038374 | T53: 27.55360578 | U53: 27.57319874 | V53: 27.29529983 | W53: 27.84682931 | X53: 25.44963889 | Y53: 26.38627117 | Z53: 27.00953627 | AA53: 27.19614516 | AB53: 28.55891184 | AC53: 29.21147004 | AD53: 29.74624789 | AE53: 30.43138954 | AF53: 33.80626507 | AG53: 34.27355237 | AH53: 34.55472523 | AI53: 33.97430026 | AJ53: 29.09227508 | AK53: 29.99818495 | AL53: 32.10385386 | AM53: 42.22294132 | AN53: 51.64933596 | AO53: 57.08648359 | AP53: 61.76402334 | AQ53: 62.67339592 | AR53: 64.61633933 | AS53: 64.21332663 | AT53: 65.37448438 | AU53: 64.18127402 | AV53: 65.01413453 | AW53: 64.42193366 | AX53: 65.2878075 | AY53: 67.18178794 | AZ53: 64.30600931 | BA53: 65.08947838 | BB53: 64.90465364 | BC53: 64.76574694 | BD53: 63.18666282 | BE53: 64.30416597 | BF53: 62.56772466 | BG53: 62.96363809 | BH53: 67.07741422 | BI53: 68.41211097 | BJ53: 68.01444712 | BK53: 68.53172017 | BL53: 68.60336511 | BM53: 67.455368 | BN53: 69.99233717 | BO53: 70.50854393 | BP53: 62.31972357 | BQ53: 56.93418637 | BR53: 55.76956251 | BS53: 51.01349326 | BT53: 59.42102479 | BU53: 67.69488802 | BV53: 77.5956419 | BW53: 86.55149446 | BX53: 86.16603615 | BY53: 86.65641972 | BZ53: 85.37333767 | CA53: 87.56088024 | CB53: 85.16928034 | CC53: 84.55800289 | CD53: 82.27892752 | CE53: 74.45731421 | CF53: 71.71124239

Sheet Basecase
D6: Basecase
E8: Perfect foresight, equilibrium electricity price and fuel prices
F9: no volatility
E10: Perfect foresight loads
E11: No credit for RPS
E12: No credit for capacity (or flat profile)
M21: total EE gross cost (20 years, NPV 2006$) | N21: total EE cost, net of market value (20 years, NPV 2006$)
J23: 7719.034212 | K23: -28099.72647 | M23: 7827.123568 | N23: -28444.65448 | O23: average forecasts, with premium
M24: 4942.614908 | N24: -25975.08253 | O24: average forecasts, without premium
M26: =M24-M23 -> -2884.50866 | N26: =N24-N23 -> 2469.571947

Sheet EE Value
B3: Begin month (mm) | C3: 8
B4: Begin year (yyyy) | C4: 2013
M8: Year | N8: =nr_BegYear -> 2013 | O8: =IF(O9=1,N8+1,N8) -> 2013 | P8: =IF(P9=1,O8+1,O8) -> 2013 | Q8: =IF(Q9=1,P8+1,P8) -> 2013 | R8: 2014 | S8: 2014 | T8: 2014 | U8: 2014 | V8: =IF(V9=1,U8+1,U8) -> 2014 | W8: =IF(W9=1,V8+1,V8) -> 2014 | X8: =IF(X9=1,W8+1,W8) -> 2014 | Y8: =IF(Y9=1,X8+1,X8) -> 2014 | Z8: =IF(Z9=1,Y8+1,Y8) -> 2014 | AA8: =IF(AA9=1,Z8+1,Z8) -> 2014 | AB8: =IF(AB9=1,AA8+1,AA8) -> 2014 | AC8: =IF(AC9=1,AB8+1,AB8) -> 2014 | AD8: =IF(AD9=1,AC8+1,AC8) -> 2015 | AE8: =IF(AE9=1,AD8+1,AD8) -> 2015 | AF8: =IF(AF9=1,AE8+1,AE8) -> 2015 | AG8: =IF(AG9=1,AF8+1,AF8) -> 2015 | AH8: =IF(AH9=1,AG8+1,AG8) -> 2015 | AI8: =IF(AI9=1,AH8+1,AH8) -> 2015 | AJ8: =IF(AJ9=1,AI8+1,AI8) -> 2015 | AK8: =IF(AK9=1,AJ8+1,AJ8) -> 2015 | AL8: =IF(AL9=1,AK8+1,AK8) -> 2015 | AM8: =IF(AM9=1,AL8+1,AL8) -> 2015 | AN8: =IF(AN9=1,AM8+1,AM8) -> 2015 | AO8: =IF(AO9=1,AN8+1,AN8) -> 2015 | AP8: =IF(AP9=1,AO8+1,AO8) -> 2016 | AQ8: =IF(AQ9=1,AP8+1,AP8) -> 2016 | AR8: =IF(AR9=1,AQ8+1,AQ8) -> 2016 | AS8: =IF(AS9=1,AR8+1,AR8) -> 2016 | AT8: =IF(AT9=1,AS8+1,AS8) -> 2016 | AU8: =IF(AU9=1,AT8+1,AT8) -> 2016 | AV8: =IF(AV9=1,AU8+1,AU8) -> 2016 | AW8: =IF(AW9=1,AV8+1,AV8) -> 2016 | AX8: =IF(AX9=1,AW8+1,AW8) -> 2016 | AY8: =IF(AY9=1,AX8+1,AX8) -> 2016 | AZ8: =IF(AZ9=1,AY8+1,AY8) -> 2016 | BA8: =IF(BA9=1,AZ8+1,AZ8) -> 2016 | BB8: =IF(BB9=1,BA8+1,BA8) -> 2017 | BC8: =IF(BC9=1,BB8+1,BB8) -> 2017 | BD8: =IF(BD9=1,BC8+1,BC8) -> 2017 | BE8: =IF(BE9=1,BD8+1,BD8) -> 2017 | BF8: =IF(BF9=1,BE8+1,BE8) -> 2017 | BG8: =IF(BG9=1,BF8+1,BF8) -> 2017 | BH8: =IF(BH9=1,BG8+1,BG8) -> 2017 | BI8: =IF(BI9=1,BH8+1,BH8) -> 2017 | BJ8: =IF(BJ9=1,BI8+1,BI8) -> 2017 | BK8: =IF(BK9=1,BJ8+1,BJ8) -> 2017 | BL8: =IF(BL9=1,BK8+1,BK8) -> 2017 | BM8: =IF(BM9=1,BL8+1,BL8) -> 2017 | BN8: =IF(BN9=1,BM8+1,BM8) -> 2018 | BO8: =IF(BO9=1,BN8+1,BN8) -> 2018 | BP8: =IF(BP9=1,BO8+1,BO8) -> 2018 | BQ8: =IF(BQ9=1,BP8+1,BP8) -> 2018 | BR8: =IF(BR9=1,BQ8+1,BQ8) -> 2018 | BS8: =IF(BS9=1,BR8+1,BR8) -> 2018 | BT8: =IF(BT9=1,BS8+1,BS8) -> 2018 | BU8: =IF(BU9=1,BT8+1,BT8) -> 2018 | BV8: =IF(BV9=1,BU8+1,BU8) -> 2018 | BW8: =IF(BW9=1,BV8+1,BV8) -> 2018 | BX8: =IF(BX9=1,BW8+1,BW8) -> 2018 | BY8: =IF(BY9=1,BX8+1,BX8) -> 2018 | BZ8: =IF(BZ9=1,BY8+1,BY8) -> 2019 | CA8: =IF(CA9=1,BZ8+1,BZ8) -> 2019 | CB8: =IF(CB9=1,CA8+1,CA8) -> 2019 | CC8: =IF(CC9=1,CB8+1,CB8) -> 2019 | CD8: =IF(CD9=1,CC8+1,CC8) -> 2019 | CE8: =IF(CE9=1,CD8+1,CD8) -> 2019 | CF8: =IF(CF9=1,CE8+1,CE8) -> 2019 | CG8: =IF(CG9=1,CF8+1,CF8) -> 2019 | CH8: =IF(CH9=1,CG8+1,CG8) -> 2019 | CI8: =IF(CI9=1,CH8+1,CH8) -> 2019 | CJ8: =IF(CJ9=1,CI8+1,CI8) -> 2019 | CK8: =IF(CK9=1,CJ8+1,CJ8) -> 2019 | CL8: =IF(CL9=1,CK8+1,CK8) -> 2020 | CM8: =IF(CM9=1,CL8+1,CL8) -> 2020 | CN8: =IF(CN9=1,CM8+1,CM8) -> 2020 | CO8: =IF(CO9=1,CN8+1,CN8) -> 2020 | CP8: =IF(CP9=1,CO8+1,CO8) -> 2020 | CQ8: =IF(CQ9=1,CP8+1,CP8) -> 2020 | CR8: =IF(CR9=1,CQ8+1,CQ8) -> 2020 | CS8: =IF(CS9=1,CR8+1,CR8) -> 2020 | CT8: =IF(CT9=1,CS8+1,CS8) -> 2020 | CU8: =IF(CU9=1,CT8+1,CT8) -> 2020 | CV8: =IF(CV9=1,CU8+1,CU8) -> 2020 | CW8: =IF(CW9=1,CV8+1,CV8) -> 2020 | CX8: =IF(CX9=1,CW8+1,CW8) -> 2021 | CY8: =IF(CY9=1,CX8+1,CX8) -> 2021 | CZ8: =IF(CZ9=1,CY8+1,CY8) -> 2021 | DA8: =IF(DA9=1,CZ8+1,CZ8) -> 2021 | DB8: =IF(DB9=1,DA8+1,DA8) -> 2021 | DC8: =IF(DC9=1,DB8+1,DB8) -> 2021 | DD8: =IF(DD9=1,DC8+1,DC8) -> 2021 | DE8: =IF(DE9=1,DD8+1,DD8) -> 2021 | DF8: =IF(DF9=1,DE8+1,DE8) -> 2021 | DG8: =IF(DG9=1,DF8+1,DF8) -> 2021 | DH8: =IF(DH9=1,DG8+1,DG8) -> 2021 | DI8: =IF(DI9=1,DH8+1,DH8) -> 2021 | DJ8: =IF(DJ9=1,DI8+1,DI8) -> 2022 | DK8: =IF(DK9=1,DJ8+1,DJ8) -> 2022 | DL8: =IF(DL9=1,DK8+1,DK8) -> 2022 | DM8: =IF(DM9=1,DL8+1,DL8) -> 2022 | DN8: =IF(DN9=1,DM8+1,DM8) -> 2022 | DO8: =IF(DO9=1,DN8+1,DN8) -> 2022 | DP8: =IF(DP9=1,DO8+1,DO8) -> 2022 | DQ8: =IF(DQ9=1,DP8+1,DP8) -> 2022 | DR8: =IF(DR9=1,DQ8+1,DQ8) -> 2022 | DS8: =IF(DS9=1,DR8+1,DR8) -> 2022 | DT8: =IF(DT9=1,DS8+1,DS8) -> 2022 | DU8: =IF(DU9=1,DT8+1,DT8) -> 2022 | DV8: =IF(DV9=1,DU8+1,DU8) -> 2023 | DW8: =IF(DW9=1,DV8+1,DV8) -> 2023 | DX8: =IF(DX9=1,DW8+1,DW8) -> 2023 | DY8: =IF(DY9=1,DX8+1,DX8) -> 2023 | DZ8: =IF(DZ9=1,DY8+1,DY8) -> 2023 | EA8: =IF(EA9=1,DZ8+1,DZ8) -> 2023 | EB8: =IF(EB9=1,EA8+1,EA8) -> 2023 | EC8: =IF(EC9=1,EB8+1,EB8) -> 2023 | ED8: =IF(ED9=1,EC8+1,EC8) -> 2023 | EE8: =IF(EE9=1,ED8+1,ED8) -> 2023 | EF8: =IF(EF9=1,EE8+1,EE8) -> 2023 | EG8: =IF(EG9=1,EF8+1,EF8) -> 2023 | EH8: =IF(EH9=1,EG8+1,EG8) -> 2024 | EI8: =IF(EI9=1,EH8+1,EH8) -> 2024 | EJ8: =IF(EJ9=1,EI8+1,EI8) -> 2024 | EK8: =IF(EK9=1,EJ8+1,EJ8) -> 2024 | EL8: =IF(EL9=1,EK8+1,EK8) -> 2024 | EM8: =IF(EM9=1,EL8+1,EL8) -> 2024 | EN8: =IF(EN9=1,EM8+1,EM8) -> 2024 | EO8: =IF(EO9=1,EN8+1,EN8) -> 2024 | EP8: =IF(EP9=1,EO8+1,EO8) -> 2024 | EQ8: =IF(EQ9=1,EP8+1,EP8) -> 2024 | ER8: =IF(ER9=1,EQ8+1,EQ8) -> 2024 | ES8: =IF(ES9=1,ER8+1,ER8) -> 2024 | ET8: =IF(ET9=1,ES8+1,ES8) -> 2025 | EU8: =IF(EU9=1,ET8+1,ET8) -> 2025 | EV8: =IF(EV9=1,EU8+1,EU8) -> 2025 | EW8: =IF(EW9=1,EV8+1,EV8) -> 2025 | EX8: =IF(EX9=1,EW8+1,EW8) -> 2025 | EY8: =IF(EY9=1,EX8+1,EX8) -> 2025 | EZ8: =IF(EZ9=1,EY8+1,EY8) -> 2025 | FA8: =IF(FA9=1,EZ8+1,EZ8) -> 2025 | FB8: =IF(FB9=1,FA8+1,FA8) -> 2025 | FC8: =IF(FC9=1,FB8+1,FB8) -> 2025 | FD8: =IF(FD9=1,FC8+1,FC8) -> 2025 | FE8: =IF(FE9=1,FD8+1,FD8) -> 2025 | FF8: =IF(FF9=1,FE8+1,FE8) -> 2026 | FG8: =IF(FG9=1,FF8+1,FF8) -> 2026 | FH8: =IF(FH9=1,FG8+1,FG8) -> 2026 | FI8: =IF(FI9=1,FH8+1,FH8) -> 2026 | FJ8: =IF(FJ9=1,FI8+1,FI8) -> 2026 | FK8: =IF(FK9=1,FJ8+1,FJ8) -> 2026 | FL8: =IF(FL9=1,FK8+1,FK8) -> 2026 | FM8: =IF(FM9=1,FL8+1,FL8) -> 2026 | FN8: =IF(FN9=1,FM8+1,FM8) -> 2026 | FO8: =IF(FO9=1,FN8+1,FN8) -> 2026 | FP8: =IF(FP9=1,FO8+1,FO8) -> 2026 | FQ8: =IF(FQ9=1,FP8+1,FP8) -> 2026 | FR8: =IF(FR9=1,FQ8+1,FQ8) -> 2027 | FS8: =IF(FS9=1,FR8+1,FR8) -> 2027 | FT8: =IF(FT9=1,FS8+1,FS8) -> 2027 | FU8: =IF(FU9=1,FT8+1,FT8) -> 2027 | FV8: =IF(FV9=1,FU8+1,FU8) -> 2027 | FW8: =IF(FW9=1,FV8+1,FV8) -> 2027 | FX8: =IF(FX9=1,FW8+1,FW8) -> 2027 | FY8: =IF(FY9=1,FX8+1,FX8) -> 2027 | FZ8: =IF(FZ9=1,FY8+1,FY8) -> 2027 | GA8: =IF(GA9=1,FZ8+1,FZ8) -> 2027 | GB8: =IF(GB9=1,GA8+1,GA8) -> 2027 | GC8: =IF(GC9=1,GB8+1,GB8) -> 2027 | GD8: =IF(GD9=1,GC8+1,GC8) -> 2028 | GE8: =IF(GE9=1,GD8+1,GD8) -> 2028 | GF8: =IF(GF9=1,GE8+1,GE8) -> 2028 | GG8: =IF(GG9=1,GF8+1,GF8) -> 2028 | GH8: =IF(GH9=1,GG8+1,GG8) -> 2028 | GI8: =IF(GI9=1,GH8+1,GH8) -> 2028 | GJ8: =IF(GJ9=1,GI8+1,GI8) -> 2028 | GK8: =IF(GK9=1,GJ8+1,GJ8) -> 2028 | GL8: =IF(GL9=1,GK8+1,GK8) -> 2028 | GM8: =IF(GM9=1,GL8+1,GL8) -> 2028 | GN8: =IF(GN9=1,GM8+1,GM8) -> 2028 | GO8: =IF(GO9=1,GN8+1,GN8) -> 2028 | GP8: =IF(GP9=1,GO8+1,GO8) -> 2029 | GQ8: =IF(GQ9=1,GP8+1,GP8) -> 2029 | GR8: =IF(GR9=1,GQ8+1,GQ8) -> 2029 | GS8: =IF(GS9=1,GR8+1,GR8) -> 2029 | GT8: =IF(GT9=1,GS8+1,GS8) -> 2029 | GU8: =IF(GU9=1,GT8+1,GT8) -> 2029 | GV8: =IF(GV9=1,GU8+1,GU8) -> 2029 | GW8: =IF(GW9=1,GV8+1,GV8) -> 2029 | GX8: =IF(GX9=1,GW8+1,GW8) -> 2029 | GY8: =IF(GY9=1,GX8+1,GX8) -> 2029 | GZ8: =IF(GZ9=1,GY8+1,GY8) -> 2029 | HA8: =IF(HA9=1,GZ8+1,GZ8) -> 2029 | HB8: =IF(HB9=1,HA8+1,HA8) -> 2030 | HC8: =IF(HC9=1,HB8+1,HB8) -> 2030 | HD8: =IF(HD9=1,HC8+1,HC8) -> 2030 | HE8: =IF(HE9=1,HD8+1,HD8) -> 2030 | HF8: =IF(HF9=1,HE8+1,HE8) -> 2030 | HG8: =IF(HG9=1,HF8+1,HF8) -> 2030 | HH8: =IF(HH9=1,HG8+1,HG8) -> 2030 | HI8: =IF(HI9=1,HH8+1,HH8) -> 2030 | HJ8: =IF(HJ9=1,HI8+1,HI8) -> 2030 | HK8: =IF(HK9=1,HJ8+1,HJ8) -> 2030 | HL8: =IF(HL9=1,HK8+1,HK8) -> 2030 | HM8: =IF(HM9=1,HL8+1,HL8) -> 2030 | HN8: =IF(HN9=1,HM8+1,HM8) -> 2031 | HO8: =IF(HO9=1,HN8+1,HN8) -> 2031 | HP8: =IF(HP9=1,HO8+1,HO8) -> 2031 | HQ8: =IF(HQ9=1,HP8+1,HP8) -> 2031 | HR8: =IF(HR9=1,HQ8+1,HQ8) -> 2031 | HS8: =IF(HS9=1,HR8+1,HR8) -> 2031 | HT8: =IF(HT9=1,HS8+1,HS8) -> 2031 | HU8: =IF(HU9=1,HT8+1,HT8) -> 2031 | HV8: =IF(HV9=1,HU8+1,HU8) -> 2031 | HW8: =IF(HW9=1,HV8+1,HV8) -> 2031 | HX8: =IF(HX9=1,HW8+1,HW8) -> 2031 | HY8: =IF(HY9=1,HX8+1,HX8) -> 2031 | HZ8: =IF(HZ9=1,HY8+1,HY8) -> 2032 | IA8: =IF(IA9=1,HZ8+1,HZ8) -> 2032 | IB8: =IF(IB9=1,IA8+1,IA8) -> 2032 | IC8: =IF(IC9=1,IB8+1,IB8) -> 2032 | ID8: =IF(ID9=1,IC8+1,IC8) -> 2032 | IE8: =IF(IE9=1,ID8+1,ID8) -> 2032 | IF8: =IF(IF9=1,IE8+1,IE8) -> 2032 | IG8: =IF(IG9=1,IF8+1,IF8) -> 2032 | IH8: =IF(IH9=1,IG8+1,IG8) -> 2032 | II8: =IF(II9=1,IH8+1,IH8) -> 2032 | IJ8: =IF(IJ9=1,II8+1,II8) -> 2032 | IK8: =IF(IK9=1,IJ8+1,IJ8) -> 2032 | IL8: =IF(IL9=1,IK8+1,IK8) -> 2033 | IM8: =IF(IM9=1,IL8+1,IL8) -> 2033 | IN8: =IF(IN9=1,IM8+1,IM8) -> 2033 | IO8: =IF(IO9=1,IN8+1,IN8) -> 2033 | IP8: =IF(IP9=1,IO8+1,IO8) -> 2033 | IQ8: =IF(IQ9=1,IP8+1,IP8) -> 2033 | IR8: =IF(IR9=1,IQ8+1,IQ8) -> 2033 | IS8: =IF(IS9=1,IR8+1,IR8) -> 2033
M9: Month | N9: =MOD(nr_FirstMonth+(COLUMN()-COLUMN(nr_FirstMonth))-1,12)+1 -> 9 | O9: 10 | P9: 11 | Q9: 12 | R9: 1 | S9: 2 | T9: 3 | U9: 4 | V9: 5 | W9: 6 | X9: 7 | Y9: 8 | Z9: 9 | AA9: 10 | AB9: 11 | AC9: 12 | AD9: 1 | AE9: 2 | AF9: 3 | AG9: 4 | AH9: 5 | AI9: 6 | AJ9: 7 | AK9: 8 | AL9: 9 | AM9: 10 | AN9: 11 | AO9: 12 | AP9: 1 | AQ9: 2 | AR9: 3 | AS9: 4 | AT9: 5 | AU9: 6 | AV9: 7 | AW9: 8 | AX9: 9 | AY9: 10 | AZ9: 11 | BA9: 12 | BB9: 1 | BC9: 2 | BD9: 3 | BE9: 4 | BF9: 5 | BG9: 6 | BH9: 7 | BI9: 8 | BJ9: 9 | BK9: 10 | BL9: 11 | BM9: 12 | BN9: 1 | BO9: 2 | BP9: 3 | BQ9: 4 | BR9: 5 | BS9: 6 | BT9: 7 | BU9: 8 | BV9: 9 | BW9: 10 | BX9: 11 | BY9: 12 | BZ9: =MOD(nr_FirstMonth+(COLUMN()-COLUMN(nr_FirstMonth))-1,12)+1 -> 1 | CA9: 2 | CB9: 3 | CC9: 4 | CD9: 5 | CE9: 6 | CF9: 7 | CG9: 8 | CH9: 9 | CI9: 10 | CJ9: 11 | CK9: 12 | CL9: 1 | CM9: 2 | CN9: 3 | CO9: 4 | CP9: 5 | CQ9: 6 | CR9: 7 | CS9: 8 | CT9: 9 | CU9: 10 | CV9: 11 | CW9: 12 | CX9: 1 | CY9: 2 | CZ9: 3 | DA9: 4 | DB9: 5 | DC9: 6 | DD9: 7 | DE9: 8 | DF9: 9 | DG9: 10 | DH9: 11 | DI9: 12 | DJ9: 1 | DK9: 2 | DL9: 3 | DM9: 4 | DN9: 5 | DO9: 6 | DP9: 7 | DQ9: 8 | DR9: 9 | DS9: 10 | DT9: 11 | DU9: 12 | DV9: 1 | DW9: 2 | DX9: 3 | DY9: 4 | DZ9: 5 | EA9: 6 | EB9: 7 | EC9: 8 | ED9: 9 | EE9: 10 | EF9: 11 | EG9: 12 | EH9: 1 | EI9: 2 | EJ9: 3 | EK9: 4 | EL9: =MOD(nr_FirstMonth+(COLUMN()-COLUMN(nr_FirstMonth))-1,12)+1 -> 5 | EM9: 6 | EN9: 7 | EO9: 8 | EP9: 9 | EQ9: 10 | ER9: 11 | ES9: 12 | ET9: 1 | EU9: 2 | EV9: 3 | EW9: 4 | EX9: 5 | EY9: 6 | EZ9: 7 | FA9: 8 | FB9: 9 | FC9: 10 | FD9: 11 | FE9: 12 | FF9: 1 | FG9: 2 | FH9: 3 | FI9: 4 | FJ9: 5 | FK9: 6 | FL9: 7 | FM9: 8 | FN9: 9 | FO9: 10 | FP9: 11 | FQ9: 12 | FR9: 1 | FS9: 2 | FT9: 3 | FU9: 4 | FV9: 5 | FW9: 6 | FX9: 7 | FY9: 8 | FZ9: 9 | GA9: 10 | GB9: 11 | GC9: 12 | GD9: 1 | GE9: 2 | GF9: 3 | GG9: 4 | GH9: 5 | GI9: 6 | GJ9: 7 | GK9: 8 | GL9: 9 | GM9: 10 | GN9: 11 | GO9: 12 | GP9: 1 | GQ9: 2 | GR9: 3 | GS9: 4 | GT9: 5 | GU9: 6 | GV9: 7 | GW9: 8 | GX9: =MOD(nr_FirstMonth+(COLUMN()-COLUMN(nr_FirstMonth))-1,12)+1 -> 9 | GY9: 10 | GZ9: 11 | HA9: 12 | HB9: 1 | HC9: 2 | HD9: 3 | HE9: 4 | HF9: 5 | HG9: 6 | HH9: 7 | HI9: 8 | HJ9: 9 | HK9: 10 | HL9: 11 | HM9: 12 | HN9: 1 | HO9: 2 | HP9: 3 | HQ9: 4 | HR9: 5 | HS9: 6 | HT9: 7 | HU9: 8 | HV9: 9 | HW9: 10 | HX9: 11 | HY9: 12 | HZ9: 1 | IA9: 2 | IB9: 3 | IC9: 4 | ID9: 5 | IE9: 6 | IF9: 7 | IG9: 8 | IH9: 9 | II9: 10 | IJ9: 11 | IK9: 12 | IL9: 1 | IM9: 2 | IN9: 3 | IO9: 4 | IP9: 5 | IQ9: 6 | IR9: 7 | IS9: 8
IT11: x
E12: + | F12: Expected Future | IT12: x
IT13: x
G14: + | H14: Electricity requirements | IT14: x
IT15: x
I16: + | J16: on-peak load (aMW) | N16: 25295.1477 | O16: 25443.0647 | P16: 30901.1922 | Q16: 34452.0971 | R16: 32609.5065 | S16: 30989.4829 | T16: 25808.9266 | U16: 26086.3849 | V16: 24192.9603 | W16: 26018.2987 | X16: 29606.3325 | Y16: 29407.1165 | Z16: =N16+150 -> 25445.1477 | AA16: =O16+150 -> 25445.1477 | AB16: 25445.1477 | AC16: 25445.1477 | AD16: 25445.1477 | AE16: 25445.1477 | AF16: 25445.1477 | AG16: 25445.1477 | AH16: 25445.1477 | AI16: 25445.1477 | AJ16: 25445.1477 | AK16: 25445.1477 | AL16: 25445.1477 | AM16: 25445.1477 | AN16: 25445.1477 | AO16: 25445.1477 | AP16: 25445.1477 | AQ16: 25445.1477 | AR16: 25445.1477 | AS16: 25445.1477 | AT16: 25445.1477 | AU16: 25445.1477 | AV16: 25445.1477 | AW16: 25445.1477 | AX16: 25445.1477 | AY16: 25445.1477 | AZ16: 25445.1477 | BA16: 25445.1477 | BB16: 25445.1477 | BC16: 25445.1477 | BD16: 25445.1477 | BE16: 25445.1477 | BF16: 25445.1477 | BG16: 25445.1477 | BH16: 25445.1477 | BI16: 25445.1477 | BJ16: 25445.1477 | BK16: 25445.1477 | BL16: 25445.1477 | BM16: 25445.1477 | BN16: 25445.1477 | BO16: 25445.1477 | BP16: 25445.1477 | BQ16: 25445.1477 | BR16: 25445.1477 | BS16: 25445.1477 | BT16: 25445.1477 | BU16: 25445.1477 | BV16: 25445.1477 | BW16: 25445.1477 | BX16: 25445.1477 | BY16: 25445.1477 | BZ16: 25445.1477 | CA16: 25445.1477 | CB16: 25445.1477 | CC16: 25445.1477 | CD16: 25445.1477 | CE16: 25445.1477 | CF16: 25445.1477 | CG16: 25445.1477 | CH16: 25445.1477 | CI16: 25445.1477 | CJ16: 25445.1477 | CK16: 25445.1477 | CL16: 25445.1477 | CM16: =CA16+150 -> 25445.1477 | CN16: 25445.1477 | CO16: 25445.1477 | CP16: 25445.1477 | CQ16: 25445.1477 | CR16: 25445.1477 | CS16: 25445.1477 | CT16: 25445.1477 | CU16: 25445.1477 | CV16: 25445.1477 | CW16: 25445.1477 | CX16: 25445.1477 | CY16: 25445.1477 | CZ16: 25445.1477 | DA16: 25445.1477 | DB16: 25445.1477 | DC16: 25445.1477 | DD16: 25445.1477 | DE16: 25445.1477 | DF16: 25445.1477 | DG16: 25445.1477 | DH16: 25445.1477 | DI16: 25445.1477 | DJ16: 25445.1477 | DK16: 25445.1477 | DL16: 25445.1477 | DM16: 25445.1477 | DN16: 25445.1477 | DO16: 25445.1477 | DP16: 25445.1477 | DQ16: 25445.1477 | DR16: 25445.1477 | DS16: 25445.1477 | DT16: 25445.1477 | DU16: 25445.1477 | DV16: 25445.1477 | DW16: 25445.1477 | DX16: 25445.1477 | DY16: 25445.1477 | DZ16: 25445.1477 | EA16: 25445.1477 | EB16: 25445.1477 | EC16: 25445.1477 | ED16: 25445.1477 | EE16: 25445.1477 | EF16: 25445.1477 | EG16: 25445.1477 | EH16: 25445.1477 | EI16: 25445.1477 | EJ16: 25445.1477 | EK16: 25445.1477 | EL16: 25445.1477 | EM16: 25445.1477 | EN16: 25445.1477 | EO16: 25445.1477 | EP16: 25445.1477 | EQ16: 25445.1477 | ER16: 25445.1477 | ES16: 25445.1477 | ET16: 25445.1477 | EU16: 25445.1477 | EV16: 25445.1477 | EW16: 25445.1477 | EX16: 25445.1477 | EY16: =EM16+150 -> 25445.1477 | EZ16: 25445.1477 | FA16: 25445.1477 | FB16: 25445.1477 | FC16: 25445.1477 | FD16: 25445.1477 | FE16: 25445.1477 | FF16: 25445.1477 | FG16: 25445.1477 | FH16: 25445.1477 | FI16: 25445.1477 | FJ16: 25445.1477 | FK16: 25445.1477 | FL16: 25445.1477 | FM16: 25445.1477 | FN16: 25445.1477 | FO16: 25445.1477 | FP16: 25445.1477 | FQ16: 25445.1477 | FR16: 25445.1477 | FS16: 25445.1477 | FT16: 25445.1477 | FU16: 25445.1477 | FV16: 25445.1477 | FW16: 25445.1477 | FX16: 25445.1477 | FY16: 25445.1477 | FZ16: 25445.1477 | GA16: 25445.1477 | GB16: 25445.1477 | GC16: 25445.1477 | GD16: 25445.1477 | GE16: 25445.1477 | GF16: 25445.1477 | GG16: 25445.1477 | GH16: 25445.1477 | GI16: 25445.1477 | GJ16: 25445.1477 | GK16: 25445.1477 | GL16: 25445.1477 | GM16: 25445.1477 | GN16: 25445.1477 | GO16: 25445.1477 | GP16: 25445.1477 | GQ16: 25445.1477 | GR16: 25445.1477 | GS16: 25445.1477 | GT16: 25445.1477 | GU16: 25445.1477 | GV16: 25445.1477 | GW16: 25445.1477 | GX16: 25445.1477 | GY16: 25445.1477 | GZ16: 25445.1477 | HA16: 25445.1477 | HB16: 25445.1477 | HC16: 25445.1477 | HD16: 25445.1477 | HE16: 25445.1477 | HF16: 25445.1477 | HG16: 25445.1477 | HH16: 25445.1477 | HI16: 25445.1477 | HJ16: 25445.1477 | HK16: =GY16+150 -> 25445.1477 | HL16: 25445.1477 | HM16: 25445.1477 | HN16: 25445.1477 | HO16: 25445.1477 | HP16: 25445.1477 | HQ16: 25445.1477 | HR16: 25445.1477 | HS16: 25445.1477 | HT16: 25445.1477 | HU16: 25445.1477 | HV16: 25445.1477 | HW16: 25445.1477 | HX16: 25445.1477 | HY16: 25445.1477 | HZ16: 25445.1477 | IA16: 25445.1477 | IB16: 25445.1477 | IC16: 25445.1477 | ID16: 25445.1477 | IE16: 25445.1477 | IF16: 25445.1477 | IG16: 25445.1477 | IH16: 25445.1477 | II16: 25445.1477 | IJ16: 25445.1477 | IK16: 25445.1477 | IL16: 25445.1477 | IM16: 25445.1477 | IN16: 25445.1477 | IO16: 25445.1477 | IP16: 25445.1477 | IQ16: 25445.1477 | IR16: 25445.1477 | IS16: 25445.1477 | IT16: x
IT17: x
I18: + | J18: off-peak load (aMW) | N18: 19947.8119 | O18: 19817.4736 | P18: 23125.6207 | Q18: 25752.5806 | R18: 24064.2798 | S18: 22974.2103 | T18: 20754.6552 | U18: 20008.142 | V18: 19261.5652 | W18: 20292.1422 | X18: 21945.5127 | Y18: 22034.5278 | Z18: =N18+150 -> 25445.1477 | AA18: 25445.1477 | AB18: 25445.1477 | AC18: 25445.1477 | AD18: 25445.1477 | AE18: 25445.1477 | AF18: 25445.1477 | AG18: 25445.1477 | AH18: 25445.1477 | AI18: 25445.1477 | AJ18: 25445.1477 | AK18: 25445.1477 | AL18: 25445.1477 | AM18: 25445.1477 | AN18: 25445.1477 | AO18: 25445.1477 | AP18: 25445.1477 | AQ18: 25445.1477 | AR18: 25445.1477 | AS18: 25445.1477 | AT18: 25445.1477 | AU18: 25445.1477 | AV18: 25445.1477 | AW18: 25445.1477 | AX18: 25445.1477 | AY18: 25445.1477 | AZ18: 25445.1477 | BA18: 25445.1477 | BB18: 25445.1477 | BC18: 25445.1477 | BD18: 25445.1477 | BE18: 25445.1477 | BF18: 25445.1477 | BG18: 25445.1477 | BH18: 25445.1477 | BI18: 25445.1477 | BJ18: 25445.1477 | BK18: 25445.1477 | BL18: 25445.1477 | BM18: 25445.1477 | BN18: 25445.1477 | BO18: 25445.1477 | BP18: 25445.1477 | BQ18: 25445.1477 | BR18: 25445.1477 | BS18: 25445.1477 | BT18: 25445.1477 | BU18: 25445.1477 | BV18: 25445.1477 | BW18: 25445.1477 | BX18: 25445.1477 | BY18: 25445.1477 | BZ18: 25445.1477 | CA18: 25445.1477 | CB18: 25445.1477 | CC18: 25445.1477 | CD18: 25445.1477 | CE18: 25445.1477 | CF18: 25445.1477 | CG18: 25445.1477 | CH18: 25445.1477 | CI18: 25445.1477 | CJ18: 25445.1477 | CK18: 25445.1477 | CL18: =BZ18+150 -> 25445.1477 | CM18: 25445.1477 | CN18: 25445.1477 | CO18: 25445.1477 | CP18: 25445.1477 | CQ18: 25445.1477 | CR18: 25445.1477 | CS18: 25445.1477 | CT18: 25445.1477 | CU18: 25445.1477 | CV18: 25445.1477 | CW18: 25445.1477 | CX18: 25445.1477 | CY18: 25445.1477 | CZ18: 25445.1477 | DA18: 25445.1477 | DB18: 25445.1477 | DC18: 25445.1477 | DD18: 25445.1477 | DE18: 25445.1477 | DF18: 25445.1477 | DG18: 25445.1477 | DH18: 25445.1477 | DI18: 25445.1477 | DJ18: 25445.1477 | DK18: 25445.1477 | DL18: 25445.1477 | DM18: 25445.1477 | DN18: 25445.1477 | DO18: 25445.1477 | DP18: 25445.1477 | DQ18: 25445.1477 | DR18: 25445.1477 | DS18: 25445.1477 | DT18: 25445.1477 | DU18: 25445.1477 | DV18: 25445.1477 | DW18: 25445.1477 | DX18: 25445.1477 | DY18: 25445.1477 | DZ18: 25445.1477 | EA18: 25445.1477 | EB18: 25445.1477 | EC18: 25445.1477 | ED18: 25445.1477 | EE18: 25445.1477 | EF18: 25445.1477 | EG18: 25445.1477 | EH18: 25445.1477 | EI18: 25445.1477 | EJ18: 25445.1477 | EK18: 25445.1477 | EL18: 25445.1477 | EM18: 25445.1477 | EN18: 25445.1477 | EO18: 25445.1477 | EP18: 25445.1477 | EQ18: 25445.1477 | ER18: 25445.1477 | ES18: 25445.1477 | ET18: 25445.1477 | EU18: 25445.1477 | EV18: 25445.1477 | EW18: 25445.1477 | EX18: =EL18+150 -> 25445.1477 | EY18: 25445.1477 | EZ18: 25445.1477 | FA18: 25445.1477 | FB18: 25445.1477 | FC18: 25445.1477 | FD18: 25445.1477 | FE18: 25445.1477 | FF18: 25445.1477 | FG18: 25445.1477 | FH18: 25445.1477 | FI18: 25445.1477 | FJ18: 25445.1477 | FK18: 25445.1477 | FL18: 25445.1477 | FM18: 25445.1477 | FN18: 25445.1477 | FO18: 25445.1477 | FP18: 25445.1477 | FQ18: 25445.1477 | FR18: 25445.1477 | FS18: 25445.1477 | FT18: 25445.1477 | FU18: 25445.1477 | FV18: 25445.1477 | FW18: 25445.1477 | FX18: 25445.1477 | FY18: 25445.1477 | FZ18: 25445.1477 | GA18: 25445.1477 | GB18: 25445.1477 | GC18: 25445.1477 | GD18: 25445.1477 | GE18: 25445.1477 | GF18: 25445.1477 | GG18: 25445.1477 | GH18: 25445.1477 | GI18: 25445.1477 | GJ18: 25445.1477 | GK18: 25445.1477 | GL18: 25445.1477 | GM18: 25445.1477 | GN18: 25445.1477 | GO18: 25445.1477 | GP18: 25445.1477 | GQ18: 25445.1477 | GR18: 25445.1477 | GS18: 25445.1477 | GT18: 25445.1477 | GU18: 25445.1477 | GV18: 25445.1477 | GW18: 25445.1477 | GX18: 25445.1477 | GY18: 25445.1477 | GZ18: 25445.1477 | HA18: 25445.1477 | HB18: 25445.1477 | HC18: 25445.1477 | HD18: 25445.1477 | HE18: 25445.1477 | HF18: 25445.1477 | HG18: 25445.1477 | HH18: 25445.1477 | HI18: 25445.1477 | HJ18: =GX18+150 -> 25445.1477 | HK18: 25445.1477 | HL18: 25445.1477 | HM18: 25445.1477 | HN18: 25445.1477 | HO18: 25445.1477 | HP18: 25445.1477 | HQ18: 25445.1477 | HR18: 25445.1477 | HS18: 25445.1477 | HT18: 25445.1477 | HU18: 25445.1477 | HV18: 25445.1477 | HW18: 25445.1477 | HX18: 25445.1477 | HY18: 25445.1477 | HZ18: 25445.1477 | IA18: 25445.1477 | IB18: 25445.1477 | IC18: 25445.1477 | ID18: 25445.1477 | IE18: 25445.1477 | IF18: 25445.1477 | IG18: 25445.1477 | IH18: 25445.1477 | II18: 25445.1477 | IJ18: 25445.1477 | IK18: 25445.1477 | IL18: 25445.1477 | IM18: 25445.1477 | IN18: 25445.1477 | IO18: 25445.1477 | IP18: 25445.1477 | IQ18: 25445.1477 | IR18: 25445.1477 | IS18: 25445.1477 | IT18: x
IT19: x
I20: + | J20: typical annual volatility | N20: 0.2 | IT20: x
IT21: x
G22: + | H22: Wholesale electricity price forecast | IT22: x
IT23: x
I24: + | J24: on-peak price ($/MWh) | N24: 66.57285872 | O24: 69.0346441 | P24: 71.94602515 | Q24: 69.92236348 | R24: 34.49583513 | S24: 34.28338546 | T24: 32.44738406 | U24: 31.10180799 | V24: 29.86495285 | W24: 31.86732994 | X24: 32.70741182 | Y24: 33.82092933 | Z24: 32.4577191 | AA24: 34.24168542 | AB24: 36.26993702 | AC24: 35.85216148 | AD24: 38.82853363 | AE24: 38.83602865 | AF24: 36.81528536 | AG24: 34.94391442 | AH24: 34.50391167 | AI24: 35.4063203 | AJ24: 36.15496703 | AK24: 38.72994168 | AL24: 36.34656836 | AM24: 38.3693334 | AN24: 41.75667617 | AO24: 39.28239718 | AP24: 41.2542054 | AQ24: 40.85974872 | AR24: 39.22795711 | AS24: 36.68658543 | AT24: 37.3354828 | AU24: 36.81988066 | AV24: 37.82452707 | AW24: 41.25968861 | AX24: 38.22747505 | AY24: 40.83867405 | AZ24: 44.08911384 | BA24: 40.73335492 | BB24: 42.13756786 | BC24: 40.86973947 | BD24: 38.43930181 | BE24: 37.23922958 | BF24: 37.55230082 | BG24: 36.85453194 | BH24: 39.7496673 | BI24: 41.96703602 | BJ24: 39.14155627 | BK24: 41.54194151 | BL24: 44.25068057 | BM24: 42.11463171 | BN24: 42.88626347 | BO24: 42.46278095 | BP24: 39.31839483 | BQ24: 38.2679087 | BR24: 38.71488627 | BS24: 38.09398733 | BT24: 41.51355836 | BU24: 43.94873902 | BV24: 40.88254363 | BW24: 42.41777884 | BX24: 44.54746236 | BY24: 43.99330131 | BZ24: 43.75881172 | CA24: 41.9761896 | CB24: 40.8900717 | CC24: 39.58868671 | CD24: 39.11348688 | CE24: 39.50507265 | CF24: 42.65063776 | CG24: 44.87763313 | CH24: 42.10230698 | CI24: 44.43567307 | CJ24: 45.94036297 | CK24: 43.85312514 | CL24: 45.79372471 | CM24: 44.92572019 | CN24: 43.372991 | CO24: 41.73647381 | CP24: 40.76129543 | CQ24: 40.82296374 | CR24: 44.83431819 | CS24: 46.60609435 | CT24: 44.07893459 | CU24: 44.80858695 | CV24: 48.20246808 | CW24: 46.04151113 | CX24: 46.1677609 | CY24: 46.02243088 | CZ24: 43.68849859 | DA24: 40.64225546 | DB24: 41.5047902 | DC24: 42.46623822 | DD24: 45.67318619 | DE24: 48.82358723 | DF24: 44.75721957 | DG24: 46.15594375 | DH24: 50.02263923 | DI24: 45.57109941 | DJ24: 47.24487327 | DK24: 46.86262965 | DL24: 43.15032727 | DM24: 40.91249043 | DN24: 42.92356089 | DO24: 42.3874565 | DP24: 45.41347798 | DQ24: 49.59052178 | DR24: 45.29661568 | DS24: 47.81754123 | DT24: 49.80758928 | DU24: 46.54638262 | DV24: 47.92640897 | DW24: 47.89722148 | DX24: 43.95641051 | DY24: 41.52673316 | DZ24: 43.94700637 | EA24: 40.33434113 | EB24: 47.1508775 | EC24: 50.59965118 | ED24: 46.5466513 | EE24: 48.10682828 | EF24: 49.12213717 | EG24: 48.04967012 | EH24: 47.30959436 | EI24: 48.43062927 | EJ24: 44.96007054 | EK24: 43.03730846 | EL24: 44.18049092 | EM24: 40.30320531 | EN24: 46.80423611 | EO24: 50.5723744 | EP24: 47.89694367 | EQ24: 49.12810707 | ER24: 49.35806498 | ES24: 47.90660504 | ET24: 49.5251223 | EU24: 49.05275353 | EV24: 45.96630668 | EW24: 43.45180067 | EX24: 43.46242802 | EY24: 41.72298742 | EZ24: 48.57076807 | FA24: 51.56027052 | FB24: 49.08399808 | FC24: 48.49901211 | FD24: 52.17685089 | FE24: 48.35706281 | FF24: 49.73417481 | FG24: 49.66501535 | FH24: 46.55009035 | FI24: 43.96645451 | FJ24: 45.46693835 | FK24: 43.77782391 | FL24: 50.09214527 | FM24: 52.86609183 | FN24: 49.30142415 | FO24: 49.82606158 | FP24: 54.00095306 | FQ24: 49.85408124 | FR24: 51.72022289 | FS24: 51.61012635 | FT24: 47.36893155 | FU24: 45.38480213 | FV24: 46.09232894 | FW24: 43.41811873 | FX24: 49.98191204 | FY24: 54.69449398 | FZ24: 50.11192117 | GA24: 51.09856165 | GB24: 54.68390792 | GC24: 49.95129343 | GD24: 53.70423598 | GE24: 52.35804241 | GF24: 49.64450215 | GG24: 46.97186184 | GH24: 48.22141962 | GI24: 44.56634125 | GJ24: 52.2854901 | GK24: 56.13293443 | GL24: 52.01119908 | GM24: 53.5213164 | GN24: 57.7982433 | GO24: 52.59376746 | GP24: 54.3634135 | GQ24: 55.31338581 | GR24: 50.18731288 | GS24: 47.93524409 | GT24: 48.29010888 | GU24: 44.04091511 | GV24: 53.03167626 | GW24: 57.15402 | GX24: 54.59460999 | GY24: 53.74506483 | GZ24: 57.41691816 | HA24: 53.70045544 | HB24: 55.54194379 | HC24: 55.97386477 | HD24: 51.25434094 | HE24: 49.14452582 | HF24: 49.31866219 | HG24: 44.3621788 | HH24: 55.85480968 | HI24: 58.67784734 | HJ24: 55.81903348 | HK24: 55.74742428 | HL24: 58.10570529 | HM24: 54.66400302 | HN24: 56.72419706 | HO24: 56.4465094 | HP24: 53.9079787 | HQ24: 50.69943187 | HR24: 49.00303551 | HS24: 47.51389135 | HT24: 56.32004794 | HU24: 59.76425423 | HV24: 57.19586486 | HW24: 56.81681544 | HX24: 59.30597014 | HY24: 56.58393322 | HZ24: 57.19111233 | IA24: 58.08616616 | IB24: 53.50926409 | IC24: 52.13490636 | ID24: 50.96432852 | IE24: 48.55111344 | IF24: 56.1826784 | IG24: 61.2489524 | IH24: 57.3938025 | II24: 58.08035425 | IJ24: 61.56008118 | IK24: 57.10925221 | IL24: 57.82090447 | IM24: 58.3045247 | IN24: 54.17449807 | IO24: 51.51217743 | IP24: 51.97090327 | IQ24: 48.91461317 | IR24: 57.67851041 | IS24: 61.70447725 | IT24: x
IT25: x
I26: + | J26: off-peak price ($/MWh) | N26: 35.39626291 | O26: 34.37005909 | P26: 39.40491553 | Q26: 36.35595571 | R26: 20.96145431 | S26: 21.86850171 | T26: 21.42545146 | U26: 18.78829068 | V26: 16.08221733 | W26: 15.06494488 | X26: 17.79511179 | Y26: 21.05097236 | Z26: 20.59824224 | AA26: 20.54211929 | AB26: 24.14568013 | AC26: 22.61750605 | AD26: 24.07433908 | AE26: 23.46704147 | AF26: 22.53419738 | AG26: 19.84860049 | AH26: 17.77296044 | AI26: 16.38781919 | AJ26: 18.83229111 | AK26: 22.98015609 | AL26: 22.59318315 | AM26: 22.97556618 | AN26: 26.33441327 | AO26: 24.50118228 | AP26: 25.44788966 | AQ26: 25.05248448 | AR26: 23.51943577 | AS26: 20.30250045 | AT26: 18.43932111 | AU26: 17.29047629 | AV26: 19.93067216 | AW26: 23.74611715 | AX26: 22.94110646 | AY26: 23.89511224 | AZ26: 27.49748902 | BA26: 24.21545981 | BB26: 26.78716072 | BC26: 25.15907791 | BD26: 24.45728717 | BE26: 21.50416938 | BF26: 17.47297254 | BG26: 17.36406152 | BH26: 21.16748426 | BI26: 24.903784 | BJ26: 24.63854692 | BK26: 25.2625135 | BL26: 29.90698469 | BM26: 26.49694536 | BN26: 26.51155599 | BO26: 26.45745845 | BP26: 25.14375924 | BQ26: 21.62843998 | BR26: 18.15052278 | BS26: 18.28062954 | BT26: 20.51971324 | BU26: 25.89115844 | BV26: 26.10746061 | BW26: 25.60200493 | BX26: 29.5702217 | BY26: 27.45139287 | BZ26: 27.35486865 | CA26: 27.93092951 | CB26: 26.40542907 | CC26: 22.68958092 | CD26: 18.61688312 | CE26: 18.77180311 | CF26: 21.35147044 | CG26: 26.62197627 | CH26: 26.67805919 | CI26: 26.00444138 | CJ26: 30.06805727 | CK26: 28.20521167 | CL26: 28.37548395 | CM26: 28.98887835 | CN26: 28.91907768 | CO26: 22.95584537 | CP26: 19.87825117 | CQ26: 18.86902223 | CR26: 21.71863831 | CS26: 27.33315621 | CT26: 27.93045583 | CU26: 26.30844434 | CV26: 31.86761627 | CW26: 28.56332711 | CX26: 29.14042254 | CY26: 28.97004686 | CZ26: 27.54138312 | DA26: 22.18430751 | DB26: 20.21163749 | DC26: 19.29682335 | DD26: 23.34962844 | DE26: 27.36341607 | DF26: 27.88375466 | DG26: 27.47968342 | DH26: 31.96821132 | DI26: 29.45576914 | DJ26: 29.7882033 | DK26: 29.30917616 | DL26: 27.40498194 | DM26: 24.03856474 | DN26: 19.93597738 | DO26: 19.88396291 | DP26: 23.74106722 | DQ26: 28.58710299 | DR26: 27.58276986 | DS26: 27.1082065 | DT26: 33.5569429 | DU26: 30.33889702 | DV26: 30.81137004 | DW26: 30.66955848 | DX26: 29.12807696 | DY26: 25.29004271 | DZ26: 19.82011179 | EA26: 19.31251375 | EB26: 23.44919197 | EC26: 29.82769033 | ED26: 28.9011285 | EE26: 27.45908752 | EF26: 33.34550831 | EG26: 30.5800217 | EH26: 31.38705468 | EI26: 29.96664404 | EJ26: 29.15373627 | EK26: 24.85607444 | EL26: 19.86346687 | EM26: 20.50144141 | EN26: 23.59132969 | EO26: 30.08376733 | EP26: 30.02533229 | EQ26: 27.56715964 | ER26: 33.66087803 | ES26: 31.35851369 | ET26: 32.59895698 | EU26: 31.95606091 | EV26: 30.91528079 | EW26: 26.04412411 | EX26: 21.11345585 | EY26: 20.90236273 | EZ26: 24.52170835 | FA26: 31.09118006 | FB26: 31.06234551 | FC26: 28.79446077 | FD26: 35.94436276 | FE26: 31.77971851 | FF26: 33.96025055 | FG26: 32.95562844 | FH26: 30.8963551 | FI26: 26.34993772 | FJ26: 22.06613689 | FK26: 21.33306647 | FL26: 25.89379533 | FM26: 32.80376171 | FN26: 32.03660795 | FO26: 31.15188464 | FP26: 37.05961161 | FQ26: 33.19942775 | FR26: 35.06278436 | FS26: 34.96337884 | FT26: 31.93416819 | FU26: 26.46570242 | FV26: 23.03067523 | FW26: 21.73347778 | FX26: 28.06942335 | FY26: 32.45173815 | FZ26: 32.41793323 | GA26: 31.3462069 | GB26: 38.82567209 | GC26: 33.77767241 | GD26: 37.69043075 | GE26: 36.61176921 | GF26: 33.32902392 | GG26: 28.29679171 | GH26: 22.93414978 | GI26: 22.48040703 | GJ26: 29.621707 | GK26: 35.4691624 | GL26: 33.91753402 | GM26: 34.17756344 | GN26: 41.56094987 | GO26: 36.77472844 | GP26: 39.81499141 | GQ26: 37.68023467 | GR26: 36.63991551 | GS26: 29.03876303 | GT26: 23.29435589 | GU26: 24.06537726 | GV26: 28.9236782 | GW26: 37.3345463 | GX26: 35.64471193 | GY26: 33.07533007 | GZ26: 40.39442166 | HA26: 38.75221932 | HB26: 41.73903891 | HC26: 38.36646701 | HD26: 36.23058507 | HE26: 29.78057887 | HF26: 22.84048076 | HG26: 24.16282901 | HH26: 30.55777525 | HI26: 38.63128328 | HJ26: 37.28117775 | HK26: 36.19673371 | HL26: 43.75919691 | HM26: 37.53201594 | HN26: 42.80553107 | HO26: 42.16069837 | HP26: 37.43503974 | HQ26: 30.64350908 | HR26: 25.67092161 | HS26: 24.32947282 | HT26: 32.86545002 | HU26: 39.90431425 | HV26: 38.61614213 | HW26: 36.9988967 | HX26: 44.98052434 | HY26: 41.30947874 | HZ26: 45.33066735 | IA26: 42.57751756 | IB26: 39.22177336 | IC26: 32.4742621 | ID26: 25.41198963 | IE26: 25.28545734 | IF26: 33.64120065 | IG26: 41.31490191 | IH26: 38.87229149 | II26: 40.22399102 | IJ26: 46.2104101 | IK26: 42.90077733 | IL26: 47.0959763 | IM26: 43.09795255 | IN26: 38.85908109 | IO26: 32.02946289 | IP26: 26.11122587 | IQ26: 25.77191102 | IR26: 36.45421116 | IS26: 42.93470885 | IT26: x
IT27: x
I28: + | J28: typical annual volatility | N28: 0.2 | IT28: x
IT29: x
G30: + | H30: Natural gas price forecast | IT30: x
IT31: x
I32: + | J32: price ($/MMBTU) | N32: 7.10209616 | O32: 7.269931606 | P32: 7.47681809 | Q32: 7.570301177 | R32: 3.674515836 | S32: 3.467629746 | T32: 3.299793226 | U32: 3.26448778 | V32: 3.322663986 | W32: 3.361714141 | X32: 3.322664665 | Y32: 3.264488064 | Z32: 3.299792148 | AA32: 3.467627594 | AB32: 3.674514078 | AC32: 3.767997165 | AD32: 4.279657058 | AE32: 4.072770968 | AF32: 3.904934448 | AG32: 3.869629002 | AH32: 3.927805208 | AI32: 3.966855363 | AJ32: 3.927805887 | AK32: 3.869629286 | AL32: 3.90493337 | AM32: 4.072768816 | AN32: 4.2796553 | AO32: 4.373138388 | AP32: 4.539169352 | AQ32: 4.332283262 | AR32: 4.164446742 | AS32: 4.129141296 | AT32: 4.187317502 | AU32: 4.226367657 | AV32: 4.187318181 | AW32: 4.12914158 | AX32: 4.164445664 | AY32: 4.33228111 | AZ32: 4.539167594 | BA32: 4.632650682 | BB32: 4.81421059 | BC32: 4.6073245 | BD32: 4.43948798 | BE32: 4.404182534 | BF32: 4.46235874 | BG32: 4.501408895 | BH32: 4.462359419 | BI32: 4.404182818 | BJ32: 4.439486902 | BK32: 4.607322348 | BL32: 4.814208833 | BM32: 4.90769192 | BN32: 5.105710008 | BO32: 4.898823918 | BP32: 4.730987399 | BQ32: 4.695681952 | BR32: 4.753858158 | BS32: 4.792908313 | BT32: 4.753858837 | BU32: 4.695682237 | BV32: 4.73098632 | BW32: 4.898821766 | BX32: 5.105708251 | BY32: 5.199191338 | BZ32: 5.414652447 | CA32: 5.207766357 | CB32: 5.039929837 | CC32: 5.004624391 | CD32: 5.062800597 | CE32: 5.101850752 | CF32: 5.062801276 | CG32: 5.004624675 | CH32: 5.039928759 | CI32: 5.207764205 | CJ32: 5.414650689 | CK32: 5.508133777 | CL32: 5.742081678 | CM32: 5.535195588 | CN32: 5.367359068 | CO32: 5.332053622 | CP32: 5.390229828 | CQ32: 5.429279983 | CR32: 5.390230507 | CS32: 5.332053906 | CT32: 5.36735799 | CU32: 5.535193436 | CV32: 5.74207992 | CW32: 5.835563008 | CX32: 5.83960306 | CY32: 5.63271697 | CZ32: 5.46488045 | DA32: 5.429575004 | DB32: 5.48775121 | DC32: 5.526801365 | DD32: 5.487751889 | DE32: 5.429575288 | DF32: 5.464879372 | DG32: 5.632714818 | DH32: 5.839601303 | DI32: 5.93308439 | DJ32: 5.938764376 | DK32: 5.731878286 | DL32: 5.564041767 | DM32: 5.52873632 | DN32: 5.586912526 | DO32: 5.625962681 | DP32: 5.586913205 | DQ32: 5.528736605 | DR32: 5.564040689 | DS32: 5.731876134 | DT32: 5.938762619 | DU32: 6.032245706 | DV32: 6.039593204 | DW32: 5.832707114 | DX32: 5.664870594 | DY32: 5.629565148 | DZ32: 5.687741354 | EA32: 5.726791509 | EB32: 5.687742033 | EC32: 5.629565432 | ED32: 5.664869516 | EE32: 5.832704962 | EF32: 6.039591447 | EG32: 6.133074534 | EH32: 6.142117584 | EI32: 5.935231494 | EJ32: 5.767394974 | EK32: 5.732089528 | EL32: 5.790265734 | EM32: 5.829315889 | EN32: 5.790266413 | EO32: 5.732089813 | EP32: 5.767393896 | EQ32: 5.935229342 | ER32: 6.142115827 | ES32: 6.235598914 | ET32: 6.246366029 | EU32: 6.039479939 | EV32: 5.87164342 | EW32: 5.836337973 | EX32: 5.894514179 | EY32: 5.933564334 | EZ32: 5.894514858 | FA32: 5.836338258 | FB32: 5.871642342 | FC32: 6.039477787 | FD32: 6.246364272 | FE32: 6.339847359 | FF32: 6.390872219 | FG32: 6.183986129 | FH32: 6.016149609 | FI32: 5.980844163 | FJ32: 6.039020369 | FK32: 6.078070524 | FL32: 6.039021048 | FM32: 5.980844448 | FN32: 6.016148531 | FO32: 6.183983977 | FP32: 6.390870462 | FQ32: 6.484353549 | FR32: 6.538691149 | FS32: 6.331805059 | FT32: 6.16396854 | FU32: 6.128663093 | FV32: 6.186839299 | FW32: 6.225889454 | FX32: 6.186839978 | FY32: 6.128663378 | FZ32: 6.163967461 | GA32: 6.331802907 | GB32: 6.538689392 | GC32: 6.632172479 | GD32: 6.689898763 | GE32: 6.483012672 | GF32: 6.315176153 | GG32: 6.279870706 | GH32: 6.338046912 | GI32: 6.377097068 | GJ32: 6.338047592 | GK32: 6.279870991 | GL32: 6.315175075 | GM32: 6.483010521 | GN32: 6.689897005 | GO32: 6.783380092 | GP32: 6.844572744 | GQ32: 6.637686653 | GR32: 6.469850134 | GS32: 6.434544687 | GT32: 6.492720893 | GU32: 6.531771048 | GV32: 6.492721573 | GW32: 6.434544972 | GX32: 6.469849056 | GY32: 6.637684501 | GZ32: 6.844570986 | HA32: 6.938054073 | HB32: 7.002792557 | HC32: 6.795906467 | HD32: 6.628069947 | HE32: 6.592764501 | HF32: 6.650940707 | HG32: 6.689990862 | HH32: 6.650941386 | HI32: 6.592764785 | HJ32: 6.628068869 | HK32: 6.795904315 | HL32: 7.0027908 | HM32: 7.096273887 | HN32: 7.100885443 | HO32: 6.893999353 | HP32: 6.726162833 | HQ32: 6.690857387 | HR32: 6.749033593 | HS32: 6.788083748 | HT32: 6.749034272 | HU32: 6.690857671 | HV32: 6.726161755 | HW32: 6.893997201 | HX32: 7.100883686 | HY32: 7.194366773 | HZ32: 7.200341252 | IA32: 6.993455162 | IB32: 6.825618643 | IC32: 6.790313196 | ID32: 6.848489402 | IE32: 6.887539557 | IF32: 6.848490081 | IG32: 6.790313481 | IH32: 6.825617565 | II32: 6.99345301 | IJ32: 7.200339495 | IK32: 7.293822582 | IL32: 7.301178922 | IM32: 7.094292832 | IN32: 6.926456312 | IO32: 6.891150866 | IP32: 6.949327072 | IQ32: 6.988377227 | IR32: 6.949327751 | IS32: 6.891151151 | IT32: x
IT33: x
I34: + | J34: typical monthly volatility | N34: 0.15 | O34: 0.15 | P34: 0.09 | Q34: 0.05 | R34: 0.09 | S34: 0.15 | T34: 0.2 | U34: 0.15 | V34: 0.09 | W34: 0.05 | X34: 0.05 | Y34: 0.09 | IT34: x
IT35: x
I36: + | J36: typical annual volatility | N36: 0.1 | IT36: x
IT37: x
G38: + | H38: Expected carbon penalty | IT38: x
IT39: x
I40: + | J40: carbon penalty ($/ton CO2) | N40: 0 | O40: 0 | P40: 0 | Q40: 0 | R40: 0 | S40: 0 | T40: 0 | U40: 0 | V40: 0 | W40: 0 | X40: 0 | Y40: 0 | Z40: 0 | AA40: 0 | AB40: 0 | AC40: 0 | AD40: 0 | AE40: 0 | AF40: 0 | AG40: 0 | AH40: 0 | AI40: 0 | AJ40: 0 | AK40: 0 | AL40: 0.5020920502 | AM40: 0.5230125523 | AN40: 0.5439330544 | AO40: 0.5648535565 | AP40: 0.5857740586 | AQ40: 0.6066945607 | AR40: 0.6276150628 | AS40: 0.6485355649 | AT40: 0.6694560669 | AU40: 0.690376569 | AV40: 0.7112970711 | AW40: 0.7322175732 | AX40: 0.7531380753 | AY40: 0.7740585774 | AZ40: 0.7949790795 | BA40: 0.8158995816 | BB40: 0.8368200837 | BC40: 0.8577405858 | BD40: 0.8786610879 | BE40: 0.89958159 | BF40: 0.9205020921 | BG40: 0.9414225941 | BH40: 0.9623430962 | BI40: 0.9832635983 | BJ40: 1.0041841 | BK40: 1.025104603 | BL40: 1.046025105 | BM40: 1.066945607 | BN40: 1.087866109 | BO40: 1.108786611 | BP40: 1.129707113 | BQ40: 1.150627615 | BR40: 1.171548117 | BS40: 1.192468619 | BT40: 1.213389121 | BU40: 1.234309623 | BV40: 1.255230126 | BW40: 1.276150628 | BX40: 1.29707113 | BY40: 1.317991632 | BZ40: 1.338912134 | CA40: 1.359832636 | CB40: 1.380753138 | CC40: 1.40167364 | CD40: 1.422594142 | CE40: 1.443514644 | CF40: 1.464435146 | CG40: 1.485355649 | CH40: 1.506276151 | CI40: 1.527196653 | CJ40: 1.548117155 | CK40: 1.569037657 | CL40: 1.589958159 | CM40: 1.610878661 | CN40: 1.631799163 | CO40: 1.652719665 | CP40: 1.673640167 | CQ40: 1.694560669 | CR40: 1.715481172 | CS40: 1.736401674 | CT40: 1.757322176 | CU40: 1.778242678 | CV40: 1.79916318 | CW40: 1.820083682 | CX40: 1.841004184 | CY40: 1.861924686 | CZ40: 1.882845188 | DA40: 1.90376569 | DB40: 1.924686192 | DC40: 1.945606695 | DD40: 1.966527197 | DE40: 1.987447699 | DF40: 2.008368201 | DG40: 2.029288703 | DH40: 2.050209205 | DI40: 2.071129707 | DJ40: 2.092050209 | DK40: 2.112970711 | DL40: 2.133891213 | DM40: 2.154811715 | DN40: 2.175732218 | DO40: 2.19665272 | DP40: 2.217573222 | DQ40: 2.238493724 | DR40: 2.259414226 | DS40: 2.280334728 | DT40: 2.30125523 | DU40: 2.322175732 | DV40: 2.343096234 | DW40: 2.364016736 | DX40: 2.384937238 | DY40: 2.405857741 | DZ40: 2.426778243 | EA40: 2.447698745 | EB40: 2.468619247 | EC40: 2.489539749 | ED40: 2.510460251 | EE40: 2.531380753 | EF40: 2.552301255 | EG40: 2.573221757 | EH40: 2.594142259 | EI40: 2.615062762 | EJ40: 2.635983264 | EK40: 2.656903766 | EL40: 2.677824268 | EM40: 2.69874477 | EN40: 2.719665272 | EO40: 2.740585774 | EP40: 2.761506276 | EQ40: 2.782426778 | ER40: 2.80334728 | ES40: 2.824267782 | ET40: 2.845188285 | EU40: 2.866108787 | EV40: 2.887029289 | EW40: 2.907949791 | EX40: 2.928870293 | EY40: 2.949790795 | EZ40: 2.970711297 | FA40: 2.991631799 | FB40: 3.012552301 | FC40: 3.033472803 | FD40: 3.054393305 | FE40: 3.075313808 | FF40: 3.09623431 | FG40: 3.117154812 | FH40: 3.138075314 | FI40: 3.158995816 | FJ40: 3.179916318 | FK40: 3.20083682 | FL40: 3.221757322 | FM40: 3.242677824 | FN40: 3.263598326 | FO40: 3.284518828 | FP40: 3.305439331 | FQ40: 3.326359833 | FR40: 3.347280335 | FS40: 3.368200837 | FT40: 3.389121339 | FU40: 3.410041841 | FV40: 3.430962343 | FW40: 3.451882845 | FX40: 3.472803347 | FY40: 3.493723849 | FZ40: 3.514644351 | GA40: 3.535564854 | GB40: 3.556485356 | GC40: 3.577405858 | GD40: 3.59832636 | GE40: 3.619246862 | GF40: 3.640167364 | GG40: 3.661087866 | GH40: 3.682008368 | GI40: 3.70292887 | GJ40: 3.723849372 | GK40: 3.744769874 | GL40: 3.765690377 | GM40: 3.786610879 | GN40: 3.807531381 | GO40: 3.828451883 | GP40: 3.849372385 | GQ40: 3.870292887 | GR40: 3.891213389 | GS40: 3.912133891 | GT40: 3.933054393 | GU40: 3.953974895 | GV40: 3.974895397 | GW40: 3.9958159 | GX40: 4.016736402 | GY40: 4.037656904 | GZ40: 4.058577406 | HA40: 4.079497908 | HB40: 4.10041841 | HC40: 4.121338912 | HD40: 4.142259414 | HE40: 4.163179916 | HF40: 4.184100418 | HG40: 4.205020921 | HH40: 4.225941423 | HI40: 4.246861925 | HJ40: 4.267782427 | HK40: 4.288702929 | HL40: 4.309623431 | HM40: 4.330543933 | HN40: 4.351464435 | HO40: 4.372384937 | HP40: 4.393305439 | HQ40: 4.414225941 | HR40: 4.435146444 | HS40: 4.456066946 | HT40: 4.476987448 | HU40: 4.49790795 | HV40: 4.518828452 | HW40: 4.539748954 | HX40: 4.560669456 | HY40: 4.581589958 | HZ40: 4.60251046 | IA40: 4.623430962 | IB40: 4.644351464 | IC40: 4.665271967 | ID40: 4.686192469 | IE40: 4.707112971 | IF40: 4.728033473 | IG40: 4.748953975 | IH40: 4.769874477 | II40: 4.790794979 | IJ40: 4.811715481 | IK40: 4.832635983 | IL40: 4.853556485 | IM40: 4.874476987 | IN40: 4.89539749 | IO40: 4.916317992 | IP40: 4.937238494 | IQ40: 4.958158996 | IR40: 4.979079498 | IS40: 5 | IT40: x
IT41: x
G42: + | H42: Schedule of planned energy resources | IT42: x
IT43: x
I44: + | J44: real overnight cost ($/kW) | W44: 600 | AU44: 600 | BS44: 600 | CQ44: 600 | DO44: 600 | EM44: 600 | FK44: 600 | GI44: 600 | HG44: 600 | IE44: 600 | IT44: x
IT45: x
I46: + | J46: capacity additions (MW) | W46: 50 | AU46: 50 | BS46: 50 | CQ46: 50 | DO46: 50 | EM46: 50 | FK46: 50 | GI46: 50 | HG46: 50 | IE46: 50 | IT46: x
IT47: x
G48: + | H48: Schedule of planned flexibility resources | IT48: x
IT49: x
I50: + | J50: real overnight cost ($/kW) | AI50: 400 | BG50: 400 | CE50: 400 | DC50: 400 | EA50: 400 | EY50: 400 | FW50: 400 | GU50: 400 | HS50: 400 | IQ50: 400 | IT50: x
IT51: x
I52: + | J52: capacity additions (MW) | AI52: 30 | BG52: 30 | CE52: 30 | DC52: 30 | EA52: 30 | EY52: 30 | FW52: 30 | GU52: 30 | HS52: 30 | IQ52: 30 | IT52: x
IT53: x
G54: + | H54: Schedule of net RPS requirements | IT54: x
IT55: x
I56: + | J56: cost of energy ($/MWh) | N56: 70 | O56: 70 | P56: 70 | Q56: 70 | R56: 70 | S56: 70 | T56: 70 | U56: 70 | V56: 70 | W56: 70 | X56: 70 | Y56: 70 | Z56: 70 | AA56: 70 | AB56: 70 | AC56: 70 | AD56: 70 | AE56: 70 | AF56: 70 | AG56: 70 | AH56: 70 | AI56: 70 | AJ56: 70 | AK56: 70 | AL56: 70 | AM56: 70 | AN56: 70 | AO56: 70 | AP56: 70 | AQ56: 70 | AR56: 70 | AS56: 70 | AT56: 70 | AU56: 70 | AV56: 70 | AW56: 70 | AX56: 70 | AY56: 70 | AZ56: 70 | BA56: 70 | BB56: 70 | BC56: 70 | BD56: 70 | BE56: 70 | BF56: 70 | BG56: 70 | BH56: 70 | BI56: 70 | BJ56: 70 | BK56: 70 | BL56: 70 | BM56: 70 | BN56: 70 | BO56: 70 | BP56: 70 | BQ56: 70 | BR56: 70 | BS56: 70 | BT56: 70 | BU56: 70 | BV56: 70 | BW56: 70 | BX56: 70 | BY56: 70 | BZ56: 70 | CA56: 70 | CB56: 70 | CC56: 70 | CD56: 70 | CE56: 70 | CF56: 70 | CG56: 70 | CH56: 70 | CI56: 70 | CJ56: 70 | CK56: 70 | CL56: 70 | CM56: 70 | CN56: 70 | CO56: 70 | CP56: 70 | CQ56: 70 | CR56: 70 | CS56: 70 | CT56: 70 | CU56: 70 | CV56: 70 | CW56: 70 | CX56: 70 | CY56: 70 | CZ56: 70 | DA56: 70 | DB56: 70 | DC56: 70 | DD56: 70 | DE56: 70 | DF56: 70 | DG56: 70 | DH56: 70 | DI56: 70 | DJ56: 70 | DK56: 70 | DL56: 70 | DM56: 70 | DN56: 70 | DO56: 70 | DP56: 70 | DQ56: 70 | DR56: 70 | DS56: 70 | DT56: 70 | DU56: 70 | DV56: 70 | DW56: 70 | DX56: 70 | DY56: 70 | DZ56: 70 | EA56: 70 | EB56: 70 | EC56: 70 | ED56: 70 | EE56: 70 | EF56: 70 | EG56: 70 | EH56: 70 | EI56: 70 | EJ56: 70 | EK56: 70 | EL56: 70 | EM56: 70 | EN56: 70 | EO56: 70 | EP56: 70 | EQ56: 70 | ER56: 70 | ES56: 70 | ET56: 70 | EU56: 70 | EV56: 70 | EW56: 70 | EX56: 70 | EY56: 70 | EZ56: 70 | FA56: 70 | FB56: 70 | FC56: 70 | FD56: 70 | FE56: 70 | FF56: 70 | FG56: 70 | FH56: 70 | FI56: 70 | FJ56: 70 | FK56: 70 | FL56: 70 | FM56: 70 | FN56: 70 | FO56: 70 | FP56: 70 | FQ56: 70 | FR56: 70 | FS56: 70 | FT56: 70 | FU56: 70 | FV56: 70 | FW56: 70 | FX56: 70 | FY56: 70 | FZ56: 70 | GA56: 70 | GB56: 70 | GC56: 70 | GD56: 70 | GE56: 70 | GF56: 70 | GG56: 70 | GH56: 70 | GI56: 70 | GJ56: 70 | GK56: 70 | GL56: 70 | GM56: 70 | GN56: 70 | GO56: 70 | GP56: 70 | GQ56: 70 | GR56: 70 | GS56: 70 | GT56: 70 | GU56: 70 | GV56: 70 | GW56: 70 | GX56: 70 | GY56: 70 | GZ56: 70 | HA56: 70 | HB56: 70 | HC56: 70 | HD56: 70 | HE56: 70 | HF56: 70 | HG56: 70 | HH56: 70 | HI56: 70 | HJ56: 70 | HK56: 70 | HL56: 70 | HM56: 70 | HN56: 70 | HO56: 70 | HP56: 70 | HQ56: 70 | HR56: 70 | HS56: 70 | HT56: 70 | HU56: 70 | HV56: 70 | HW56: 70 | HX56: 70 | HY56: 70 | HZ56: 70 | IA56: 70 | IB56: 70 | IC56: 70 | ID56: 70 | IE56: 70 | IF56: 70 | IG56: 70 | IH56: 70 | II56: 70 | IJ56: 70 | IK56: 70 | IL56: 70 | IM56: 70 | IN56: 70 | IO56: 70 | IP56: 70 | IQ56: 70 | IR56: 70 | IS56: 70 | IT56: x
IT57: x
I58: + | J58: capacity additions (MW) | IT58: x
IT59: x
G60: + | H60: Schedule of risk mitigation resources | IT60: x
IT61: x
I62: + | J62: real overnight cost ($/kW) | AI62: 400 | BG62: 400 | CE62: 400 | DC62: 400 | EA62: 400 | EY62: 400 | FW62: 400 | GU62: 400 | HS62: 400 | IQ62: 400 | IT62: x
IT63: x
I64: + | J64: capacity additions (MW) | AI64: 0 | BG64: 0 | CE64: 0 | DC64: 0 | EA64: 0 | EY64: 0 | FW64: 0 | GU64: 0 | HS64: 0 | IQ64: 0 | IT64: x
IT65: x
E66: + | F66: Description of EE potential | IT66: x
IT67: x
G68: + | H68: Supply curve for EE | IT68: x
IT69: x
I70: + | J70: (MW,RL $/MWh) points, separated by @+ delimiter | N70: 1.4,0@+3.1,20@+4.7,50@+6.1,80@+6.2,90@+7,190 | IT70: x
IT71: x
G72: + | H72: Hourly distribution of EE energy | IT72: x
IT73: x
I74: + | J74: peak hour (percent of annual aMW) | IT74: x
IT75: x
I76: + | J76: on-peak hours (percent of annual aMW) | IT76: x
IT77: x
I78: + | J78: off-peak hours (percent of annual aMW) | IT78: x
IT79: x
E80: + | F80: View of Risk | IT80: x
IT81: x
G82: + | H82: Insurance premium value | IT82: x
IT83: x
I84: + | J84: [0.5% .. 1.5%] | IT84: x
IT85: x
G86: + | H86: Envelope of wholesale electricity prices (likelihood over corresponding months) | IT86: x
IT87: x
I88: + | J88: 99% high quantile | IT88: x
IT89: x
I90: + | J90: 95% high quantile | IT90: x
IT91: x
I92: + | J92: 90% high quantile | IT92: x
IT93: x
I94: + | J94: median (50%) | IT94: x
IT95: x
I96: + | J96: 90% low quantile | IT96: x
IT97: x
I98: + | J98: 95% low quantile | IT98: x
IT99: x
I100: + | J100: 99% low quantile | IT100: x
IT101: x
G102: + | H102: Sensitivity of variable revenue requirements to wholesale electricity price | IT102: x
IT103: x
I104: + | J104: Current variable revenue requirements ($/month) | IT104: x
IT105: x
I106: + | J106: (% $/% $/MWh) | IT106: x
IT107: x
G108: + | H108: Envelope of electricity requirements (loads)s (likelihood over corresponding months) | IT108: x
IT109: x
I110: + | J110: 99% high quantile | IT110: x
IT111: x
I112: + | J112: 95% high quantile | IT112: x
IT113: x
I114: + | J114: 90% high quantile | IT114: x
IT115: x
I116: + | J116: median (50%) | IT116: x
IT117: x
I118: + | J118: 90% low quantile | IT118: x
IT119: x
I120: + | J120: 95% low quantile | IT120: x
IT121: x
I122: + | J122: 99% low quantile | IT122: x
IT123: x
G124: + | H124: Sensitivity of variable revenue requirements to electricity requirements (loads) | IT124: x
IT125: x
I126: + | J126: Current variable revenue requirements ($/month) | IT126: x
IT127: x
I128: + | J128: (% $/% $/MWh) | IT128: x
IT129: x
G130: + | H130: Envelope of natural gas fuel prices (likelihood over corresponding months) | IT130: x
IT131: x
I132: + | J132: 99% high quantile | IT132: x
IT133: x
I134: + | J134: 95% high quantile | IT134: x
IT135: x
I136: + | J136: 90% high quantile | IT136: x
IT137: x
I138: + | J138: median (50%) | IT138: x
IT139: x
I140: + | J140: 90% low quantile | IT140: x
IT141: x
I142: + | J142: 95% low quantile | IT142: x
IT143: x
I144: + | J144: 99% low quantile | IT144: x
IT145: x
G146: + | H146: Sensitivity of variable revenue requirements to natural gas fuel price | IT146: x
IT147: x
I148: + | J148: Current variable revenue requirements ($/month) | IT148: x
IT149: x
I150: + | J150: (% $/% $/MWh) | IT150: x
IT151: x
G152: + | H152: Envelope of carbon penalty (likelihood over corresponding months) | IT152: x
IT153: x
I154: + | J154: 99% high quantile | IT154: x
IT155: x
I156: + | J156: 95% high quantile | IT156: x
IT157: x
I158: + | J158: 90% high quantile | IT158: x
IT159: x
I160: + | J160: median (50%) | IT160: x
IT161: x
I162: + | J162: 90% low quantile | IT162: x
IT163: x
I164: + | J164: 95% low quantile | IT164: x
IT165: x
I166: + | J166: 99% low quantile | IT166: x
IT167: x
G168: + | H168: Sensitivity of variable revenue requirements to carbon penalty | IT168: x
IT169: x
I170: + | J170: Current variable revenue requirements ($/month) | IT170: x
IT171: x
I172: + | J172: (% $/% $/MWh) | IT172: x
IT173: x
IT174: x
IT175: x
IT176: x
IT177: x
IT178: x
IT179: x
IT180: x
